Cogmind - Beta 13 @@@ ROGUE MODE // 2024.04.01 @ 20:09:55 Player: ducanus Result: Smashed by cave-in Performance ------------- Evolutions (0) 0 Regions Visited (2) 400 Robots Destroyed (18) 90 Value Destroyed (409) 409 Prototype IDs (3) 60 Alien Tech Used (0) 0 Bonus (0) 0 TOTAL SCORE: 959 Bonus ------- None Cogmind --------- Core Integrity 0/250 Matter 300/300 Energy 100/100 System Corruption 5% Temperature Cool (86) Movement Walking (120) Location -10/Mines Parts ------- > --- POWER (1) -------- (None) > --- PROPULSION (2) --- Improved Aluminum Leg > --- UTILITY (2) ------ (None) > --- WEAPON (2) ------- Mining Laser Mace > --- INVENTORY (5) ---- Medium Laser Assault Rifle Shotgun Grenade Launcher Peak State ------------ > --- POWER ------------ Ion Engine > --- PROPULSION ------- Improved Aluminum Leg Improved Aluminum Leg > --- UTILITY ---------- Large Matter Pod Backup Plating I > --- WEAPON ----------- Shotgun Shotgun > --- INVENTORY -------- Light Ion Engine EM Pulse Gun Medium Laser Assault Rifle [Rating: 11] Favorites ----------- Power Light Ion Engine Engine Light Ion Engine Propulsion Improved Aluminum Leg Leg Improved Aluminum Leg Utility Large Matter Pod Storage Large Matter Pod Protection Backup Plating I Weapon Assault Rifle Energy Gun Medium Laser Ballistic Gun Assault Rifle Special Weapon Mining Laser Impact Weapon Mace Build | -11 -10 -10 ------- Run | Yrd Mat Min Slots Evolved . | . . . Power . | . . . Propulsion . | . . . Utility . | . . . Weapon . | . . . Parts Attached 22 | 5 15 2 Power 4 | 1 2 1 Engine 4 | 1 2 1 Core . | . . . Reactor . | . . . Propulsion 5 | 2 3 . Treads . | . . . Leg 5 | 2 3 . Wheel . | . . . Hover . | . . . Flight . | . . . Utility 1 | . 1 . Device . | . . . Storage 1 | . 1 . Processor . | . . . Hackware . | . . . Protection . | . . . Artifact . | . . . Weapon 12 | 2 9 1 Energy Gun 3 | 2 1 . Energy Cannon . | . . . Ballistic Gun 7 | . 7 . Ballistic Cannon . | . . . Launcher . | . . . Special Weapon 1 | . . 1 Impact Weapon 1 | . 1 . Slashing Weapon . | . . . Piercing Weapon . | . . . Special Melee Weapon . | . . . Unidentified Prototypes . | . . . Parts Lost 6 | . 1 5 Power 2 | . . 2 Propulsion 1 | . . 1 Utility 2 | . . 2 Weapon 1 | . 1 . Highest Loss Streak 3 | . 1 3 To Critical Strikes . | . . . Average Slot Usage (%) 89 | . 94 84 Engine 10 | . 13 8 Leg 27 | . 27 28 Storage 13 | . 13 14 Protection 7 | . 11 5 Energy Gun 1 | . 3 . Ballistic Gun 17 | . 22 13 Impact Weapon 7 | . . 14 Naked Turns . | . . . Heaviest Build 15 | 7 15 13 Greatest Support 26 | 20 26 26 Greatest Overweight (x) . | . . . Average Overweight (x) . | . . . Largest Inventory Capacity 5 | 5 5 5 Average Capacity 5 | 5 5 5 Most Carried 5 | 2 5 4 Average Carried 3 | . 3 3 Final Capacity 5 | 5 5 5 Final Carried 4 | 1 3 4 Class Distribution -------------------- 100% | Mutant Dominant Class ---------------- Mutant | -10/Materials Mutant | -10/Mines Resources | -11 -10 -10 ----------- Run | Yrd Mat Min Matter Collected 681 | 250 369 62 Remotely . | . . . Salvage Created 451 | 40 360 51 Parts 29 | 1 21 7 Haulers Intercepted . | . . . Recyclers Shooed 1 | . 1 . Parts Field Recycled . | . . . Retrieved Matter . | . . . Parts Self-Destructed . | . . . Prevented . | . . . Kills | -11 -10 -10 ------- Run | Yrd Mat Min Combat Hostiles Destroyed 18 | 1 13 4 Guns 18 | 1 13 4 Classes Destroyed 2 | 1 1 . Swarmer 9 | . 5 4 Grunt 9 | 1 8 . Best Kill Streak 4 | 1 4 2 Combat Bots Only 4 | 1 4 2 Max Kills in Single Turn 1 | 1 1 1 Gunslinging . | . . . Exploded . | . . . Melee . | . . . Uniques/NPCs Destroyed . | . . . Combat | -11 -10 -10 -------- Run | Yrd Mat Min Hostile Shots Fired 100 | 6 61 33 Missed 17 | . 12 5 Damage Taken 1066 | 67 522 477 Core 258 | 20 104 134 Absorbed by Shields . | . . . Core Remaining (%) 92 | 92 . . Volleys Fired 70 | 5 44 21 Largest 2 | 2 2 1 Hottest 100 | 90 70 100 Shots Fired 111 | 10 80 21 Gun 105 | 10 80 15 Cannon . | . . . Launcher . | . . . Special 6 | . . 6 Kinetic 75 | . 60 15 Thermal 28 | 5 17 6 Explosive . | . . . Electromagnetic 8 | 5 3 . Robot Hit Streak 8 | 8 8 3 Robot Miss Streak 5 | 1 5 3 Penetration Max . | . . . Secondary Targets 2 | . 2 . Max Gunslinging Chain 1 | . 1 . Shots Hit Robots 66 | 8 50 8 Core Hits 29 | 2 23 4 Critical Kills 1 | . 1 . Critical Parts Destroyed 2 | . 2 . Critical Strikes 6 | . 6 . Burn 3 | . 3 . Destroy 3 | . 3 . Melee Attacks . | . . . Impact . | . . . Slashing . | . . . Piercing . | . . . Sneak Attacks . | . . . Combat Hostiles . | . . . Follow-up Attacks . | . . . Damage Inflicted 905 | 120 674 111 Guns 882 | 97 674 111 Cannons . | . . . Explosions 23 | 23 . . Melee . | . . . Ramming . | . . . Kinetic 623 | . 512 111 Thermal 210 | 71 139 . Explosive . | . . . Electromagnetic 72 | 49 23 . Impact . | . . . Slashing . | . . . Piercing . | . . . Highest Corruption . | . . . Average Corruption . | . . . Corruption Purged . | . . . Corruption Blocked . | . . . Overload Shots . | . . . Overflow Damage . | . . . Projectiles . | . . . Explosions . | . . . Melee . | . . . Knockbacks . | . . . Impact . | . . . Kinetic . | . . . Secondary . | . . . Self-Inflicted Damage . | . . . Shots . | . . . Rammed . | . . . Targets Rammed . | . . . Kicked . | . . . Crushed . | . . . Highest Temperature 213 | 186 213 84 Average Temperature 78 | 109 77 54 Received Heat Transfer 261 | 36 225 . Siege Activations . | . . . Robots Corrupted . | . . . Combat Hostiles . | . . . Parts Fried . | . . . Impact Corruptions . | . . . Robots Melted . | . . . Combat Hostiles . | . . . Parts Melted 1 | . 1 . Heat Transferred 827 | 198 629 . Parts Sabotaged . | . . . Parts Stolen . | . . . Parts Stripped . | . . . Power Chain Reactions 1 | 1 . . Alert | -11 -10 -10 ------- Run | Yrd Mat Min Peak Influence 344 | 20 344 195 Initial 100 | . 13 100 Average 121 | 2 167 94 Maximum Alert Level 1 | . 1 . Low Security (%) 90 | 100 78 100 Level 1 9 | . 21 . Level 2 . | . . . Level 3 . | . . . Level 4 . | . . . Level 5 . | . . . High Security . | . . . Max Security . | . . . Squads Dispatched 3 | . 3 . Investigation 1 | . 1 . Extermination . | . . . Reinforcement 2 | . 2 . Assault . | . . . Garrison . | . . . Intercept . | . . . Searches Triggered . | . . . Construction Impeded . | . . . Haulers Reinforced . | . . . Active Scanning Responses . | . . . Cargo Convoy Interrupts . | . . . Stealth | -11 -10 -10 --------- Run | Yrd Mat Min Distress Signals 2 | . 2 . Communications Jammed . | . . . Distress Signals . | . . . Times Spotted 30 | 1 23 6 Peak Tracking Total 6 | 1 6 3 Tactical Retreats 3 | . 2 1 Traps | -11 -10 -10 ------- Run | Yrd Mat Min Traps Triggered 4 | . 4 . Indirectly . | . . . Trap Hack Attempts . | . . . Triggered . | . . . Disarmed . | . . . Reprogrammed . | . . . Reused . | . . . Traps Extracted . | . . . Installed . | . . . Triggered . | . . . Machines | -11 -10 -10 ---------- Run | Yrd Mat Min Machines Disabled . | . . . Max in Single Turn . | . . . Machines Repaired . | . . . Machines Dismantled . | . . . Machines Sabotaged . | . . . Overloaded Fab Kills . | . . . Hacking | -11 -10 -10 --------- Run | Yrd Mat Min Machines Accessed 5 | . 5 . Terminals 3 | . 3 . Fabricators . | . . . Repair Stations 1 | . 1 . Recycling Units 1 | . 1 . Scanalyzers . | . . . Garrison Access . | . . . Total Hacks 9 | . 9 . Successful 4 | . 4 . Failed 5 | . 5 . Catastrophic . | . . . Database Lockouts . | . . . Manual . | . . . Terminals 6 | . 6 . Fabricators . | . . . Repair Stations 2 | . 2 . Recycling Units 1 | . 1 . Scanalyzers . | . . . Garrison Access . | . . . Terminal Hacks 2 | . 2 . Prototype ID Bank 2 | . 2 . Fabricator Hacks . | . . . Repair Station Hacks 1 | . 1 . Refit 1 | . 1 . Recycling Unit Hacks 1 | . 1 . Report Inventory 1 | . 1 . Scanalyzer . | . . . Garrison Access Hacks . | . . . Unauthorized Hacks . | . . . Terminals . | . . . Fabricators . | . . . Repair Stations . | . . . Recycling Units . | . . . Scanalyzers . | . . . Garrison Access . | . . . Data Cores Recovered . | . . . Used . | . . . Hacking Detections 1 | . 1 . Full Trace Events 1 | . 1 . Feedback Events . | . . . Feedback Blocked . | . . . Robot Schematics Acquired . | . . . Robots Built . | . . . Authchips . | . . . Time . | . . . Total Robot Build Rating . | . . . Part Schematics Acquired . | . . . Parts Built . | . . . Authchips . | . . . Time . | . . . Total Part Build Rating . | . . . Parts Repaired . | . . . Time . | . . . Parts Recycled . | . . . Recycled Matter . | . . . Retrieved Matter . | . . . Retrieved Components . | . . . Parts Scanalyzed . | . . . Part Schematics Acquired . | . . . Parts Damaged . | . . . Bothacking | -11 -10 -10 ------------ Run | Yrd Mat Min Used RIF Installer . | . . . Robots Hacked . | . . . Non-combat . | . . . Combat . | . . . Robot Hacks Applied . | . . . Relay Couplers Released . | . . . Fabnet Peak Effective % . | . . . Robots Rewired . | . . . Allies Hacked . | . . . Hacks Repelled . | . . . Allies | -11 -10 -10 -------- Run | Yrd Mat Min Total Allies 1 | . . 1 Largest Group 1 | . . 1 Highest-Rated Group 31 | . . 31 Highest-Rated Ally 31 | . . 31 Total Orders . | . . . Ally Attacks . | . . . Total Damage . | . . . Kills . | . . . Allies Corrupted . | . . . Allies Melted . | . . . Intel | -11 -10 -10 ------- Run | Yrd Mat Min Robot Analysis Total . | . . . Derelict Logs Recovered 1 | . . 1 Drone Launches . | . . . Drone Recoveries . | . . . Exploration | -11 -10 -10 ------------- Run | Yrd Mat Min Turns Passed 1405 | 87 621 697 Spaces Moved 956 | 62 388 506 Core 18 | 18 . . Treads . | . . . Legs 938 | 44 388 506 Wheels . | . . . Hover . | . . . Flight . | . . . Fastest Speed 50 | 50 120 120 Average Speed 118 | 99 120 120 Slowest Speed 120 | 120 120 120 Overloaded Moves . | . . . Propulsion Burnouts . | . . . Robots Hopped . | . . . Cave-ins Triggered 1 | . . 1 Exploration Rate (%) 60 | 5 80 97 Regions Visited 2 Branch Regions 1 Pre-discovered Areas . | . . . Known Exits Taken . | . . . Unknown Exits Taken 2 | 1 1 . Scrap Searched . | . . . Spaces Dug 6 | . . 6 Terrain Destroyed 6 | . . 6 Melee . | . . . Projectile 6 | . . 6 AOE . | . . . Terrain Rammed . | . . . Walls Destroyed . | . . . Machines Disabled . | . . . Actions | -11 -10 -10 --------- Run | Yrd Mat Min Total 1099 | 77 460 562 Wait 32 | . . 32 Move 953 | 61 387 505 Hop . | . . . Pick Up 19 | 6 11 2 Fast Attach 2 | . 2 . Attach 12 | 5 6 1 Detach . | . . . Swap 8 | . 7 1 Drop 3 | . 3 . Fire 70 | 5 44 21 Melee . | . . . Ram . | . . . Kick . | . . . Crush . | . . . Escape Stasis . | . . . Rewire . | . . . Trap . | . . . Miscellaneous . | . . . Route ------- -11/Scrapyard -10/Materials (discovered 3 exits: [*Mat x2] / [*Min]) -10/Mines (discovered 2 exits: [*Mat x2]) History --------- Turn | Location | Event 2 | -11/Scrapyard | Met Revision 17 60 | -11/Scrapyard | Discovered new exit (range 8) 88 | -11/Scrapyard | Entered Materials 289 | -10/Materials | Discovered new exit (range 16) 306 | -10/Materials | Build established: Mutant 373 | -10/Materials | Discovered new exit (range 13) 574 | -10/Materials | Discovered new exit (range 15) 709 | -10/Materials | Entered Mines 719 | -10/Mines | Discovered new exit (range 9) 728 | -10/Mines | Core integrity fell below 50% 1191 | -10/Mines | Learned Materials terminal intel 1203 | -10/Mines | Discovered new exit (range 4) 1348 | -10/Mines | Received a Mining Laser from a helpful Derelict 1406 | -10/Mines | Crushed by falling debris 1406 | -10/Mines | Smashed by cave-in Last Messages --------------- "What are you doing alone down here?" 01348_ DW-0SG(g): "And why aren't you carrying a mining laser?! Certainly you don't want THEM to uncover you when the ceiling comes crashing down? Here, take my spare." 01351_ DW-0SG(g): "You're apparently new around these parts, I'll cover you." Move into an ally to swap places with them. 01353_ Acquired Mining Laser. 01354_ DW-0SG(g): "Mining lasers are a lot more useful than you might think..." 01406_ The unstable cave ceiling collapses. 01406_ Crushed by falling debris. [Achievement: Unlikely Earthworm] 01406_ Lgt. Ion Engine destroyed. 01406_ System corrupted by crushing effect (+1). 01406_ Imp. Aluminum Leg destroyed. 01406_ System corrupted by crushing effect (+1). 01406_ Lrg. Matter Pod destroyed. 01406_ System corrupted by crushing effect (+3). Map ----- +----------------------------------------------------+ | # ##????# #????## ##????????????????? | | ## ##?????# #?????## ########?????????? | | ?# #??##### #??????## ## ##????????? | | ?# #??# #???????# ##???????? | | ?# #??# ## ##???????## #???????? | | ?# #??# ## #?????????## ## #??????? | | ?# #### ## #?????????## #### #??????? | | ?# ## #????????## #???# ##??????? | | ?# ####### #????????# #????###???????? | | ## ##????# #????????# #??????????????? | | ###### #???????# #??????????????? | | ######### ##??????????????? | | ###### ## ########???????????? | | """ #????######### #####?## ##??????????? | | """ ####?????###?# #????## #??????????? | | """ ##???# ### #???## #??????????? | | """ ##?# ## ##### ##??????????? | | ## ## #####???????????? | | ###### ##???????????????? | | #????# #????????????????? | | ###### ##???## #????????????????? | | #????### ##???## #????????????????? | | #??????## #####????# ##????????????????? | | #???????#####????????## ###????????????????? | | #?????????????????????### #????????????????? | | #???????????????????????#@#????????????????? | | #??????????????????????## ##???????????????? | | ???????????????????????#;;;#???????????????? | | ???????????????????????## ##??????????????? | | ???????????????????????# g #??????????????? | | ???????????????????????# ##?????????????? | | ???????????????????????## ##????????????? | | ????????????????????????## ##???????????? | | #???????????????????????## #???????????? | | #####??????????????????## #???????????? | | ##????????????????## #???????????? | | ##?????????????### #???????????? | | #???????####?## #???????????? | | ##??????## ### #???????????? | | ##???????# ##???????????? | | ##???????# ####????????????? | | ###?????# #???????????????? | | ## ##???## #???????????????? | | ### #???# #???????????????? | | ??# #???# ##???????????????? | | ?## ##???# #????????????????? | | ## ##????## #????????????????? | | # ####???# # ##????????????????? | | #?### ##### ###?????????????????? | | ### #???####???????????????????? | +----------------------------------------------------+ Best States ------------- Heat Dissipation 25 Energy Generation 10 Energy Capacity 250 Matter Stores 395 Matter Capacity 450 Sight Range 16 Terrain Scan Density 10 Armor Coverage 80 Evasion (%) 55 Item Schematics ----------------- None Robot Schematics ------------------ None Fabricated ------------ Nothing Alien Tech Used ----------------- None Achievements -------------- Unlikely Earthworm Challenges ------------ None Game ------ Seed UltimateSystemScrap Manual? 0 Play Time 00:24:23 Cumulative 2.7 hours Start 2024.04.01 @ 19:38:15 End 2024.04.01 @ 20:09:55 Sessions 1 Manual Loads 0 Difficulty Rogue Special Mode None Game No. 3 Rogue 3 Adventurer 0 Explorer 0 Win Type - Total 0 Types 0/0/0/0/0/0/0/0/0 Lore% 2 Gallery% 5 Achievement% 3 Wizard Run 0 Options --------- Layout 1 ASCII 0 Keyboard 0 Movement Mouse Keybinds 0 Fullscreen 1 Font 24/Smallcaps Map View 50x35 Zoom Use 0% Tactical HUD 1 Map Filters NONE Filters NONE Steam 1 RUN: 2d58759f-c764-4ebe-8b44-b5ec61800af0